bitfinex/quotes_SOLUSD_20250514
["timestamp","ask_amount","ask_price","bid_price","bid_amount"]
[1747186634360,10.47474119,183.85,183.79,10.47474119]
[1747186634648,0.28432314,183.88,183.84,10.47474119]
[1747186634649,31.43844837,183.88,183.84,10.47474119]
[1747186634856,10.47474119,183.9,183.86,10.47474119]
[1747186634857,5.437992,183.9,183.86,10.47474119]
[1747186635155,10.47474119,183.95,183.89,10.47474119]
[1747186635343,26.14216157,183.93,183.88,15.49763493]
[1747186635541,15.49763493,183.94,183.88,15.49763493]
[1747186635732,5.43685097,183.93,183.89,15.49763493]
[1747186635935,5.43685097,183.93,183.91,15.49763493]
[1747186636330,15.49763493,183.99,183.92,15.49763493]
[1747186636551,26.0,183.98,183.93,15.49763493]
[1747186636852,5.4347826,184.0,183.97,15.49763493]
[1747186637166,5.43451416,184.01,183.98,15.49763493]
[1747186637337,5.43389664,184.03,183.98,15.49763493]
[1747186637541,5.43271581,184.07,184.02,15.49763493]
[1747186637729,26.0,184.06,184.02,15.49763493]
[1747186638124,5.43271581,184.07,184.02,15.49763493]
[1747186638469,5.43271581,184.07,183.99,15.49763493]
[1747186638470,15.49763493,184.05,183.99,15.49763493]
[1747186638753,15.49763493,184.03,183.98,15.49763493]
[1747186638923,0.28432314,184.03,183.97,19.74]
[1747186639121,15.49763493,184.02,183.97,35.23763493]
[1747186639321,0.28432314,184.03,183.97,35.23763493]
[1747186639322,15.78195807,184.03,183.98,15.49763493]
[1747186639563,15.78195807,184.03,183.97,35.23763493]
[1747186639728,0.14216157,184.03,184.01,15.49763493]
[1747186639929,5.43301097,184.06,184.02,15.49763493]
[1747186640159,26.0,184.05,183.97,19.74]
[1747186640333,15.49763493,184.01,183.95,19.74]
[1747186640665,0.42648471,184.04,183.96,15.49763493]
[1747186640666,15.78195807,184.02,183.96,15.49763493]
[1747186641563,15.78195807,184.02,183.97,15.49763493]
[1747186641852,5.43428112,184.02,184.0,15.49763493]
[1747186642354,5.43428112,184.02,184.01,15.49763493]
[1747186642529,5.4338437,184.04,184.01,15.49763493]
[1747186642728,5.4338437,184.04,184.03,15.49763493]
[1747186643053,5.43301097,184.06,184.03,15.49763493]
[1747186643365,5.43301097,184.06,184.05,15.49763493]
[1747186643556,5.43183052,184.1,184.05,15.49763493]
[1747186643726,5.43124049,184.12,184.08,15.49763493]
[1747186643923,0.28432314,184.11,184.08,15.49763493]
[1747186644126,5.43124049,184.12,184.1,15.49763493]
[1747186644343,5.43124049,184.12,184.11,15.49763493]
[1747186645427,5.42976597,184.17,184.05,46.93076805]
[1747186645657,5.42976597,184.17,184.15,15.49763493]
[1747186646163,5.42976597,184.17,184.16,15.49763493]
[1747186646525,5.42829225,184.22,184.16,15.49763493]
[1747186646862,5.42829225,184.22,184.2,15.49763493]
[1747186647530,5.42829225,184.22,184.21,15.49763493]
[1747186648027,5.42829225,184.22,184.17,19.72]
[1747186648232,5.42711386,184.26,184.21,15.49763493]
[1747186648447,5.42711386,184.26,184.24,15.49763493]
[1747186648759,13.5672331,184.27,184.25,15.49763493]
[1747186649134,13.5672331,184.27,184.17,19.72]
[1747186649346,15.92411964,184.26,184.17,19.72]
[1747186649560,15.92411964,184.26,184.2,15.49763493]
[1747186649929,0.28432314,184.23,184.18,15.49763493]
[1747186650458,15.78195807,184.23,184.17,19.72]
[1747186650655,0.28432314,184.21,184.17,35.21763493]
[1747186650845,0.28432314,184.21,184.08,5.57455362]
[1747186651054,0.28432314,184.21,184.16,15.49763493]
[1747186651229,15.78195807,184.21,184.16,15.49763493]
[1747186651431,0.28432314,184.21,184.16,15.49763493]
[1747186651735,0.28432314,184.21,184.17,15.49763493]
[1747186652138,5.42888165,184.2,184.19,15.49763493]
[1747186652468,5.42888165,184.2,184.13,19.72]
[1747186652667,5.42888165,184.2,184.18,15.49763493]
[1747186653283,5.42888165,184.2,184.14,15.49763493]
[1747186653448,5.42888165,184.2,184.18,15.49763493]
[1747186654578,13.8549434,184.23,184.18,15.49763493]
[1747186654579,5.42829225,184.22,184.18,15.49763493]
[1747186654795,15.49763493,184.2,184.07,0.14216157]
[1747186654939,15.49763493,184.18,184.13,15.49763493]
[1747186655263,0.14216157,184.18,184.14,15.49763493]
[1747186655464,0.14216157,184.18,184.13,15.49763493]
[1747186655966,0.14216157,184.18,184.14,15.49763493]
[1747186656200,5.42829225,184.22,184.17,15.49763493]
[1747186656359,5.42829225,184.22,184.2,15.49763493]
[1747186656668,5.57015918,184.23,184.19,15.49763493]
[1747186656980,5.42799761,184.23,184.2,15.49763493]
[1747186657158,5.42799761,184.23,184.22,15.49763493]
[1747186657652,5.42740841,184.25,184.22,15.49763493]
[1747186658189,5.42740841,184.25,184.24,15.49763493]
[1747186658479,5.42740841,184.25,184.23,15.49763493]
[1747186658778,5.42681934,184.27,184.24,15.49763493]
[1747186658976,5.42681934,184.27,184.23,15.49763493]
[1747186659158,5.42681934,184.27,184.24,15.49763493]
[1747186659644,5.42681934,184.27,184.19,19.72]
[1747186659986,31.42740841,184.25,184.23,15.49763493]
[1747186660176,31.42740841,184.25,184.19,19.72]
[1747186660690,0.28432314,184.24,184.19,19.72]
[1747186660862,15.78195807,184.24,184.19,19.72]
[1747186661061,15.78195807,184.24,184.15,19.7]
[1747186661062,26.0,184.21,184.15,19.7]
[1747186661262,26.0,184.17,184.05,27.06108631]
[1747186661457,41.6397965,184.16,184.1,15.49763493]
[1747186661685,41.6397965,184.16,184.06,19.72]
[1747186661686,41.6397965,184.16,184.11,15.49763493]
[1747186661896,26.0,184.13,184.06,19.72]
[1747186662182,41.78195807,184.12,184.07,15.49763493]
[1747186662382,26.28432314,184.12,184.07,15.49763493]
[1747186662579,41.78195807,184.12,184.06,35.21763493]
[1747186663391,5.43035568,184.15,184.09,15.49763493]
[1747186663595,5.42976597,184.17,184.14,15.49763493]
[1747186663895,5.42947116,184.18,184.16,15.49763493]
[1747186664097,5.42947116,184.18,184.09,19.96]
[1747186664463,5.42947116,184.18,184.17,15.49763493]
[1747186664868,5.42947116,184.18,184.15,15.49763493]
[1747186665292,26.0,184.16,184.14,15.49763493]
[1747186665591,26.0,184.12,184.06,19.72]
[1747186665891,5.43183052,184.1,184.07,15.49763493]
[1747186666096,31.43169226,184.11,184.09,15.49763493]
[1747186666397,5.43169226,184.11,184.1,15.49763493]
[1747186666893,5.43169226,184.11,184.05,15.49763493]
[1747186667192,5.43169226,184.11,184.09,15.49763493]
[1747186667396,5.43094552,184.13,184.1,15.49763493]
[1747186668173,5.43094552,184.13,184.11,15.49763493]
[1747186668381,5.43094552,184.13,184.1,15.49763493]
[1747186668864,5.43094552,184.13,184.04,5.43352111]
[1747186669064,19.00780075,184.14,184.1,15.49763493]
[1747186669899,5.43065059,184.14,184.1,15.49763493]
[1747186670202,19.00132727,184.2,184.13,15.49763493]
[1747186670364,19.00132727,184.2,184.17,15.49763493]
[1747186670563,45.00132727,184.2,184.17,15.49763493]
[1747186670875,19.00132727,184.2,184.17,15.49763493]
[1747186671082,45.00132727,184.2,184.16,15.49763493]
[1747186671265,19.00132727,184.2,184.16,15.49763493]
[1747186672986,19.00132727,184.2,184.15,15.49763493]
[1747186674206,19.00132727,184.2,184.16,15.49763493]
[1747186675309,19.00132727,184.2,184.1,20.18]
[1747186675590,19.00132727,184.2,184.16,15.49763493]
[1747186676777,5.42888165,184.2,184.18,15.49763493]
[1747186676976,5.42888165,184.2,184.14,15.49763493]
[1747186677192,5.42888165,184.2,184.19,15.49763493]
[1747186677569,5.42829225,184.22,184.19,15.49763493]
[1747186677799,5.42829225,184.22,184.21,15.49763493]
[1747186678725,31.42799761,184.23,184.21,15.49763493]
[1747186680569,5.42740841,184.25,184.22,15.49763493]
[1747186680770,5.42740841,184.25,184.24,15.49763493]
[1747186682117,18.99386769,184.27,184.22,15.49763493]
[1747186682282,18.99386769,184.27,184.23,15.49763493]
[1747186682479,5.42681934,184.27,184.25,15.49763493]
[1747186682692,13.56293853,184.33,184.26,15.49763493]
[1747186682896,13.56293853,184.33,184.32,15.49763493]
[1747186683099,13.56293853,184.33,184.31,15.49763493]
[1747186683496,13.56293853,184.33,184.3,15.49763493]
[1747186683694,13.56293853,184.33,184.25,20.16]
[1747186683886,26.0,184.31,184.26,15.49763493]
[1747186684098,18.9907759,184.3,184.26,15.49763493]
[1747186684406,18.9907759,184.3,184.25,15.49763493]
[1747186684581,0.28432314,184.29,184.25,15.49763493]
[1747186685223,0.14216157,184.29,184.28,15.49763493]
[1747186685387,18.9907759,184.3,184.28,15.49763493]
[1747186685585,5.42593597,184.3,184.29,15.49763493]
[1747186686491,18.98800297,184.33,184.29,15.49763493]
[1747186686812,18.98800297,184.33,184.32,15.49763493]
[1747186686983,18.98800297,184.33,184.23,35.65763493]
[1747186687181,18.98800297,184.33,184.31,15.49763493]
[1747186687687,5.42505289,184.33,184.32,15.49763493]
[1747186688086,5.42505289,184.33,184.23,41.08556913]
[1747186688288,5.42505289,184.33,184.31,15.49763493]
[1747186688805,18.98768512,184.33,184.3,15.49763493]
[1747186689004,18.98768512,184.33,184.32,15.49763493]
[1747186689218,5.42505289,184.33,184.32,15.49763493]
[1747186689589,5.42505289,184.33,184.24,26.0]
[1747186689813,5.42505289,184.33,184.31,15.49763493]
[1747186690112,5.42505289,184.33,184.32,15.49763493]
[1747186690485,18.98487655,184.36,184.32,15.49763493]
[1747186690708,18.98487655,184.36,184.33,15.49763493]
[1747186691220,18.98487655,184.36,184.35,15.49763493]
[1747186691917,18.98487655,184.36,184.31,15.49763493]
[1747186691918,34.48251148,184.36,184.31,15.49763493]
[1747186692096,15.78195807,184.35,184.3,20.16]
[1747186692295,15.78195807,184.35,184.32,15.49763493]
[1747186692296,0.28432314,184.35,184.32,15.49763493]
[1747186692497,5.42475859,184.34,184.32,15.49763493]
[1747186692701,5.42475859,184.34,184.33,15.49763493]
[1747186693398,5.42475859,184.34,184.33,10.43813194]
[1747186695019,19.12675692,184.36,184.32,10.43813194]
[1747186695190,10.58029351,184.35,184.3,20.16]
[1747186695389,0.28432314,184.33,184.3,20.16]
[1747186695593,0.28432314,184.3,184.19,1.5912]
[1747186695809,10.43813194,184.28,184.22,10.43813194]
[1747186695994,0.14216157,184.3,184.26,10.43813194]
[1747186696202,0.28432314,184.31,184.27,10.43813194]
[1747186696408,0.28432314,184.31,184.26,10.43813194]
[1747186696719,0.28432314,184.31,184.2,19.96]
[1747186696910,10.72245508,184.31,184.25,10.43813194]
[1747186697212,18.9907759,184.3,184.25,10.43813194]
[1747186697623,18.9907759,184.3,184.27,10.43813194]
[1747186698195,18.9907759,184.3,184.2,19.96]
[1747186698400,29.42890784,184.3,184.25,10.43813194]
[1747186698630,0.28432314,184.29,184.24,10.43813194]
[1747186698833,0.14216157,184.27,184.18,5.90804766]
[1747186698998,10.58029351,184.26,184.19,19.96]
[1747186699204,10.58029351,184.26,184.2,10.43813194]
[1747186699529,10.58029351,184.26,184.22,10.43813194]
[1747186699530,18.99592944,184.25,184.22,10.43813194]
[1747186700213,10.72245508,184.24,184.19,30.39813194]
[1747186700424,10.43813194,184.23,184.19,19.96]
[1747186700600,36.72245508,184.24,184.19,19.96]
[1747186700797,10.43813194,184.23,184.19,19.96]
[1747186701027,0.28432314,184.22,184.19,19.96]
[1747186701397,5.42858693,184.21,184.19,19.96]
[1747186701908,5.42858693,184.21,184.19,15.44992363]
[1747186703513,13.56792326,184.26,184.2,15.44992363]
[1747186703725,5.42711386,184.26,184.21,19.96]
[1747186704123,5.42711386,184.26,184.25,15.44992363]
[1747186705508,0.28432314,184.28,184.25,15.44992363]
[1747186705827,26.0,184.27,184.22,15.44992363]
[1747186706015,26.0,184.25,184.22,15.44992363]
[1747186706324,15.44992363,184.27,184.22,15.44992363]
[1747186706522,13.56581616,184.29,184.26,15.44992363]
[1747186706727,13.56581616,184.29,184.27,15.44992363]
[1747186706899,13.56581616,184.29,184.26,15.44992363]
[1747186707713,18.99204655,184.29,184.26,15.44992363]
[1747186708198,18.99204655,184.29,184.23,15.44992363]
[1747186708401,0.14216157,184.28,184.21,39.86]
[1747186708629,0.14216157,184.28,184.24,15.44992363]
[1747186709125,0.28432314,184.26,184.23,15.44992363]
[1747186709333,0.28432314,184.26,184.24,15.44992363]
[1747186709806,0.28432314,184.26,184.19,19.96]
[1747186709807,5.42740841,184.25,184.23,15.44992363]
[1747186710748,0.28432314,184.24,184.19,19.96]
[1747186710906,0.28432314,184.24,184.2,15.44992363]
[1747186711209,0.28432314,184.24,184.21,15.44992363]
[1747186711629,0.28432314,184.24,184.22,15.44992363]
[1747186711828,5.42799761,184.23,184.22,15.44992363]
[1747186713039,0.28432314,184.22,184.16,15.44992363]
[1747186713226,0.28432314,184.22,184.13,19.96]
[1747186713227,26.28432314,184.22,184.19,15.44992363]
[1747186713411,26.0,184.22,184.14,15.44992363]
[1747186713613,26.0,184.22,184.21,15.44992363]
[1747186713817,31.42829225,184.22,184.2,15.44992363]
[1747186714027,31.42829225,184.22,184.13,19.96]
[1747186714210,44.99902289,184.22,184.18,15.44992363]
[1747186714521,44.99902289,184.22,184.14,15.44992363]
[1747186714831,44.99902289,184.22,184.18,15.44992363]
[1747186715043,44.99902289,184.22,184.19,15.44992363]
[1747186715713,44.99902289,184.22,184.2,15.44992363]
[1747186717041,44.99902289,184.22,184.19,15.44992363]
[1747186717208,0.28432314,184.21,184.1,39.38056753]
[1747186717411,0.28432314,184.21,184.17,15.44992363]
[1747186717625,0.42648471,184.21,184.11,19.96]
[1747186717819,26.0,184.19,184.16,15.44992363]
[1747186718731,0.28432314,184.18,184.11,19.96]
[1747186718935,5.43006081,184.16,184.15,15.44992363]
[1747186720748,19.28953599,184.16,184.11,19.96]
[1747186720919,19.28953599,184.16,184.13,15.44992363]
[1747186721256,0.28432314,184.15,184.13,10.46541588]
[1747186721413,0.28432314,184.15,184.14,10.46541588]
[1747186722427,5.43006081,184.16,184.14,10.46541588]
[1747186722743,5.43006081,184.16,184.15,10.46541588]
[1747186723244,5.57163273,184.18,184.15,10.46541588]
[1747186723542,5.57163273,184.18,184.16,10.46541588]
[1747186724410,19.14531065,184.18,184.16,10.46541588]
[1747186725120,19.14531065,184.18,184.11,19.96]
[1747186725334,5.42947116,184.18,184.17,10.46541588]
[1747186726115,5.42947116,184.18,184.16,10.46541588]
[1747186727323,19.00314908,184.18,184.16,10.46541588]
[1747186727734,19.28747222,184.18,184.17,10.46541588]
[1747186728138,5.42947116,184.18,184.17,10.46541588]
[1747186728360,5.42858693,184.21,184.17,10.46541588]
[1747186728658,5.42858693,184.21,184.2,10.46541588]
[1747186729254,4.31928656,184.26,184.2,10.46541588]
[1747186729255,5.42711386,184.26,184.2,10.46541588]
[1747186729457,5.42711386,184.26,184.25,10.46541588]
[1747186730042,5.711437,184.26,184.25,10.46541588]
[1747186730652,5.42711386,184.26,184.25,10.46541588]
[1747186730844,5.42711386,184.26,184.24,10.46541588]
[1747186732962,5.42711386,184.26,184.19,19.82]
[1747186732963,5.42711386,184.26,184.25,10.46541588]
[1747186733463,5.42711386,184.26,184.19,19.82]
[1747186733766,0.28432314,184.25,184.2,10.46541588]
[1747186733982,26.0,184.23,184.2,10.46541588]
[1747186734264,26.0,184.23,184.21,10.46541588]
[1747186734636,0.42648471,184.22,184.11,8.0992]
[1747186734842,0.42648471,184.22,184.18,10.46541588]
[1747186735577,0.28432314,184.22,184.21,10.46541588]
[1747186735881,0.28432314,184.22,184.2,10.46541588]
[1747186736550,5.42858693,184.21,184.2,10.46541588]
[1747186738572,5.42829225,184.22,184.2,10.46541588]
[1747186738803,5.42829225,184.22,184.21,10.46541588]
[1747186740180,5.42829225,184.22,184.14,30.28541588]
[1747186740486,0.28432314,184.21,184.18,10.46541588]
[1747186740682,19.00108577,184.2,184.17,10.46541588]
[1747186740899,19.00108577,184.2,184.16,10.46541588]
[1747186741102,0.28432314,184.19,184.15,30.0]
[1747186741396,26.0,184.17,184.14,19.82]
[1747186741562,0.28432314,184.16,184.14,19.82]
[1747186741769,0.28432314,184.16,184.14,30.28541588]
[1747186742490,0.28432314,184.19,184.15,10.46541588]
[1747186742784,5.42888165,184.2,184.18,10.46541588]
[1747186742971,5.42888165,184.2,184.14,19.82]
[1747186743180,5.42888165,184.2,184.19,10.46541588]
[1747186743494,13.85473187,184.23,184.19,10.46541588]
[1747186743495,26.0,184.23,184.19,10.46541588]
[1747186743694,13.56802402,184.26,184.22,10.46541588]
[1747186743695,5.42740841,184.25,184.22,10.46541588]
[1747186743865,5.42740841,184.25,184.16,19.74]
[1747186743866,31.42740841,184.25,184.23,10.46541588]
[1747186744065,5.42740841,184.25,184.24,10.46541588]
[1747186744660,5.42714028,184.26,184.24,10.46541588]
[1747186744862,31.42714028,184.26,184.24,10.46541588]
[1747186745798,7.9603,184.31,184.25,10.46541588]
[1747186745966,7.9603,184.31,184.3,10.46541588]
[1747186745967,8.16206714,184.31,184.3,10.46541588]
[1747186746348,5.42564158,184.31,184.3,10.46541588]
[1747186746786,13.56144423,184.35,184.3,10.46541588]
[1747186746968,26.0,184.34,184.24,25.24767971]
[1747186747167,5.42446433,184.35,184.33,10.46541588]
[1747186747377,5.42446433,184.35,184.34,10.46541588]
[1747186748781,5.4241701,184.36,184.33,10.46541588]
[1747186748968,5.4241701,184.36,184.26,1.5631]
[1747186749173,5.70849324,184.36,184.35,10.46541588]
[1747186749373,8.41413691,184.36,184.35,10.46541588]
[1747186749805,5.4241701,184.36,184.35,10.46541588]
[1747186749982,5.42328759,184.39,184.35,10.46541588]
[1747186750192,13.55674796,184.42,184.38,10.46541588]
[1747186750397,26.0,184.41,184.32,10.46541588]
[1747186750827,13.55400642,184.45,184.33,5.42505289]
[1747186750999,0.42648471,184.44,184.33,5.42505289]
[1747186751197,18.97552986,184.45,184.33,5.42505289]
[1747186751515,21.64828967,184.45,184.34,6.1715]
[1747186751701,34.09428325,184.45,184.44,10.46541588]
[1747186752021,31.42152344,184.45,184.44,10.46541588]
[1747186752196,5.42152344,184.45,184.44,10.46541588]
[1747186752524,5.42152344,184.45,184.38,39.58]
[1747186752817,39.695085,184.47,184.38,39.58]
[1747186752818,5.42122953,184.46,184.43,10.46541588]
[1747186753017,5.42122953,184.46,184.38,39.58]
[1747186753018,5.42122953,184.46,184.44,10.46541588]
[1747186753318,5.42122953,184.46,184.45,10.46541588]
[1747186753855,5.42122953,184.46,184.38,39.58]
[1747186753988,5.42122953,184.46,184.45,10.46541588]
[1747186754320,5.42091677,184.48,184.45,10.46541588]
[1747186754486,5.42091677,184.48,184.47,10.46541588]
[1747186754990,31.4200542,184.5,184.47,10.46541588]
[1747186755210,31.4200542,184.5,184.45,19.82]
[1747186755403,31.4200542,184.5,184.49,10.46541588]
[1747186756312,45.25451284,184.5,184.48,10.46541588]
[1747186756520,0.28432314,184.49,184.45,19.82]
[1747186756706,10.74973902,184.49,184.44,10.46541588]
[1747186756906,0.42648471,184.49,184.45,10.46541588]
[1747186757089,26.0,184.44,184.4,19.78]
[1747186757294,26.0,184.44,184.42,10.46541588]
[1747186757505,26.0,184.44,184.43,10.46541588]
[1747186758112,26.0,184.44,184.42,10.46541588]
[1747186758518,26.0,184.44,184.41,10.46541588]
[1747186758821,26.0,184.44,184.43,10.46541588]
[1747186759029,0.28432314,184.43,184.36,203.06]
[1747186759215,10.89190059,184.43,184.36,203.06]
[1747186759399,10.89190059,184.43,184.37,10.46541588]
[1747186759731,10.46541588,184.42,184.37,10.46541588]
[1747186759915,10.46541588,184.42,184.36,10.46541588]
[1747186760235,0.14216157,184.38,184.36,10.46541588]
[1747186760396,36.60757745,184.41,184.32,19.78]
[1747186760397,0.28432314,184.4,184.37,10.46541588]
[1747186760596,0.28432314,184.4,184.39,10.46541588]
[1747186760900,18.97636087,184.44,184.39,10.46541588]
[1747186761093,18.97636087,184.44,184.32,61.67071809]
[1747186761411,18.97636087,184.44,184.41,10.46541588]
[1747186761607,5.56397896,184.44,184.43,10.46541588]
[1747186761808,5.42181739,184.44,184.43,10.46541588]
[1747186762035,5.42181739,184.44,184.4,19.78]
[1747186762242,5.42181739,184.44,184.43,10.46541588]
[1747186762691,5.42122953,184.46,184.41,10.46541588]
[1747186762893,5.42122953,184.46,184.45,10.46541588]
[1747186763902,5.42122953,184.46,184.44,10.46541588]
[1747186764322,0.14216157,184.45,184.38,1.518]
[1747186764530,0.28432314,184.43,184.38,10.46541588]
[1747186764698,0.28432314,184.43,184.35,19.78]
[1747186765023,5.42240537,184.42,184.41,10.46541588]
[1747186765905,5.42240537,184.42,184.35,19.78]
[1747186765906,0.14216157,184.41,184.35,19.78]
[1747186766109,0.28432314,184.41,184.38,10.46541588]
[1747186766336,5.42240537,184.42,184.4,10.46541588]
[1747186766526,5.42240537,184.42,184.41,10.46541588]
[1747186767205,5.42152344,184.45,184.41,10.46541588]
[1747186767530,5.42152344,184.45,184.44,10.46541588]
[1747186768212,5.42122953,184.46,184.44,10.46541588]
[1747186768418,5.42122953,184.46,184.45,10.46541588]
[1747186769325,5.42122953,184.46,184.44,10.46541588]
[1747186769995,5.42122953,184.46,184.45,10.46541588]
[1747186770807,5.42122953,184.46,184.44,10.46541588]
[1747186771008,5.42122953,184.46,184.42,19.78]
[1747186771221,5.42122953,184.46,184.45,10.46541588]
[1747186771629,5.42093565,184.47,184.45,10.46541588]
[1747186773224,10.74973902,184.46,184.42,19.78]
[1747186773542,36.74973902,184.46,184.41,10.46541588]
[1747186773712,0.28432314,184.44,184.37,19.78]
[1747186773902,0.28432314,184.42,184.38,10.46541588]
[1747186774107,0.28432314,184.42,184.39,10.46541588]
[1747186774519,0.28432314,184.44,184.41,10.46541588]
[1747186775733,5.42211137,184.43,184.41,10.46541588]
[1747186775940,5.42211137,184.43,184.37,19.78]
[1747186776115,5.42211137,184.43,184.41,10.46541588]
[1747186777648,5.42211137,184.43,184.42,10.46541588]
[1747186777852,5.42211137,184.43,184.4,10.46541588]
[1747186778222,5.42211137,184.43,184.41,10.46541588]
[1747186778723,0.14216157,184.42,184.37,19.78]
[1747186778941,10.74973902,184.42,184.37,19.78]
[1747186779123,0.14216157,184.4,184.32,39.48]
[1747186779319,0.14216157,184.4,184.35,10.46541588]
[1747186779913,5.42328759,184.39,184.36,10.46541588]
[1747186781817,10.89190059,184.38,184.3,19.78]
[1747186782039,0.28432314,184.36,184.32,10.46541588]
[1747186782343,0.28432314,184.36,184.28,10.46541588]
[1747186782344,10.74973902,184.33,184.28,10.46541588]
[1747186782532,10.74973902,184.33,184.27,10.46541588]
[1747186782847,0.28432314,184.31,184.28,10.46541588]
[1747186783026,0.28432314,184.31,184.25,203.0]
[1747186783221,0.28432314,184.31,184.27,10.46541588]
[1747186783425,0.28432314,184.31,184.26,10.46541588]
[1747186783625,10.74973902,184.29,184.21,19.78]
[1747186783931,0.28432314,184.27,184.24,10.46541588]
[1747186784520,0.28432314,184.27,184.21,19.78]
[1747186784840,0.28432314,184.27,184.24,10.46541588]
[1747186785631,5.42711386,184.26,184.24,10.46541588]
[1747186786352,5.42711386,184.26,184.21,19.78]
[1747186786641,5.42711386,184.26,184.21,30.24541588]
[1747186786642,0.28432314,184.25,184.21,30.24541588]
[1747186787742,5.42770299,184.24,184.22,10.46541588]
[1747186787942,0.28432314,184.25,184.23,10.46541588]
[1747186787943,5.42744294,184.25,184.23,10.46541588]
[1747186789765,5.42711386,184.26,184.23,10.46541588]
[1747186790325,5.42687426,184.27,184.25,10.46541588]
[1747186790564,5.42687426,184.27,184.26,10.46541588]
[1747186790863,5.42652297,184.29,184.26,10.46541588]
[1747186791024,5.42505289,184.33,184.28,10.46541588]
[1747186791223,5.42505289,184.33,184.3,10.46541588]
[1747186791537,44.98768512,184.33,184.29,10.46541588]
[1747186791850,5.42564158,184.31,184.23,35.61337602]
[1747186792151,5.42564158,184.31,184.29,10.46541588]
[1747186792765,2.77710817,184.36,184.3,10.46541588]
[1747186792945,5.42446433,184.35,184.28,19.78]
[1747186793830,5.42358173,184.38,184.28,25.20639908]
[1747186794033,5.42358173,184.38,184.35,10.46541588]
[1747186794639,5.42358173,184.38,184.37,10.46541588]
[1747186795059,5.70790487,184.38,184.37,10.46541588]
[1747186795270,5.5657433,184.38,184.36,10.46541588]
[1747186795471,0.28432314,184.37,184.28,19.78]
[1747186795758,5.4241701,184.36,184.32,10.46541588]
[1747186795979,0.28432314,184.35,184.33,10.46541588]
[1747186796134,0.28432314,184.35,184.32,10.46541588]
[1747186797380,5.4241701,184.36,184.32,10.46541588]
[1747186797686,5.4241701,184.36,184.34,10.46541588]
[1747186797973,5.4241701,184.36,184.35,10.46541588]
[1747186798658,5.4241701,184.36,184.34,10.46541588]
[1747186799190,5.4241701,184.36,184.28,19.78]
[1747186799388,5.4241701,184.36,184.33,10.46541588]
[1747186800185,0.28432314,184.35,184.33,10.46541588]
[1747186800863,0.28432314,184.35,184.28,19.78]
[1747186801056,10.46541588,184.31,184.22,19.78]
[1747186801377,0.14216157,184.32,184.29,10.46541588]
[1747186801577,0.14216157,184.35,184.31,10.46541588]
[1747186801734,5.4241701,184.36,184.34,10.46541588]
[1747186802781,5.4241701,184.36,184.33,10.46541588]
[1747186802981,0.28432314,184.35,184.33,10.46541588]
[1747186803287,0.28432314,184.35,184.32,10.46541588]
[1747186803588,0.28432314,184.32,184.25,19.78]
[1747186803750,0.28432314,184.32,184.28,10.46541588]
[1747186804272,5.42564158,184.31,184.28,10.46541588]
[1747186804778,5.42564158,184.31,184.29,10.46541588]
[1747186804986,5.42529893,184.33,184.3,10.46541588]
[1747186805195,5.42529893,184.33,184.32,10.46541588]
[1747186805856,18.98579083,184.35,184.32,10.46541588]
[1747186806261,0.28432314,184.34,184.29,10.46541588]
[1747186806466,0.28432314,184.31,184.28,10.46541588]
[1747186806675,0.28432314,184.33,184.3,10.46541588]
[1747186806982,0.28432314,184.34,184.31,10.46541588]
[1747186807275,0.28432314,184.34,184.3,10.46541588]
[1747186807857,5.42505289,184.33,184.31,10.46541588]
[1747186808075,5.42505289,184.33,184.32,10.46541588]
[1747186809057,5.5666259,184.35,184.32,10.46541588]
[1747186809871,0.14216157,184.33,184.25,19.78]
[1747186810182,10.74973902,184.33,184.27,10.46541588]
[1747186810502,0.28432314,184.33,184.28,10.46541588]
[1747186811083,0.28432314,184.31,184.28,10.46541588]
[1747186811883,26.42648471,184.31,184.21,1.6196]
[1747186812186,10.46541588,184.3,184.24,10.46541588]
[1747186812380,36.89190059,184.31,184.25,10.46541588]
[1747186812875,36.89190059,184.31,184.21,1.6196]
[1747186813074,5.42593597,184.3,184.25,10.46541588]
[1747186813394,5.42593597,184.3,184.26,10.46541588]
[1747186814092,18.9907759,184.3,184.26,10.46541588]
[1747186814579,5.42593597,184.3,184.26,10.46541588]
[1747186814897,5.42534722,184.32,184.23,10.46541588]
[1747186815067,5.42534722,184.32,184.3,10.46541588]
[1747186815469,5.42534722,184.32,184.23,5.42785062]
[1747186815692,5.42534722,184.32,184.3,10.46541588]
[1747186816584,5.42534722,184.32,184.24,19.78]
[1747186816896,5.42534722,184.32,184.3,10.46541588]
[1747186817472,5.42534722,184.32,184.31,10.46541588]
[1747186818077,0.14216157,184.31,184.24,19.78]
[1747186818295,10.46541588,184.3,184.24,30.24541588]
[1747186818795,0.28432314,184.28,184.25,10.46541588]
[1747186819295,5.42623039,184.29,184.27,10.46541588]
[1747186819796,5.42623039,184.29,184.28,10.46541588]